bitfinex/quotes_BTCUSD_20250224
["timestamp","ask_amount","ask_price","bid_price","bid_amount"]
[1740403748932,0.00503505,96153.0,96148.0,0.10634429]
[1740403749136,0.0050307,96152.0,96148.0,0.10634429]
[1740403749384,0.0050307,96152.0,96148.0,0.10834429]
[1740403749607,0.155998,96155.0,96148.0,0.10434429]
[1740403749791,0.00502635,96151.0,96148.0,0.10534429]
[1740403749925,0.156,96154.0,96148.0,0.10734429]
[1740403750162,0.00502199,96150.0,96148.0,0.10434429]
[1740403750340,0.156006,96150.0,96148.0,0.10634429]
[1740403750551,0.00501764,96149.0,96148.0,0.10834429]
[1740403750750,0.00501764,96149.0,96148.0,0.10634429]
[1740403750956,0.156004,96152.0,96148.0,0.10634429]
[1740403750957,0.156004,96152.0,96148.0,0.10834429]
[1740403751182,0.00501764,96149.0,96148.0,0.10834429]
[1740403751432,0.156001,96153.0,96148.0,0.10834429]
[1740403751634,0.00500089,96149.0,96148.0,0.10834429]
[1740403751803,0.156002,96153.0,96148.0,0.10834429]
[1740403752225,0.00501814,96152.0,96148.0,0.10834429]
[1740403752430,0.156007,96149.0,96148.0,0.0036986]
[1740403752648,0.306007,96149.0,96148.0,0.0046986]
[1740403752845,0.31101207,96149.0,96148.0,0.0046986]
[1740403753292,0.31101207,96149.0,96148.0,0.0066986]
[1740403753494,0.31101207,96149.0,96148.0,0.0016986]
[1740403753716,0.31101207,96149.0,96148.0,0.0036986]
[1740403754873,0.31101207,96149.0,96148.0,0.0016986]
[1740403759452,0.38371428,96149.0,96148.0,0.0016986]
[1740403759849,0.31101207,96149.0,96148.0,0.0016986]
[1740403762667,0.15500507,96149.0,96148.0,0.0016986]
[1740403762929,0.00500507,96149.0,96148.0,0.23714429]
[1740403763144,0.00500507,96149.0,96148.0,0.39315329]
[1740403763350,0.00762435,96170.0,96149.0,0.208009]
[1740403763550,0.00762435,96170.0,96154.0,0.155998]
[1740403763760,0.20894647,96169.0,96155.0,0.10264569]
[1740403763973,0.00503893,96163.0,96155.0,0.10264569]
[1740403764186,0.155995,96157.0,96156.0,0.0831]
[1740403764542,0.16100781,96157.0,96156.0,0.0831]
[1740403766134,0.16100781,96157.0,96149.0,0.0793]
[1740403766135,0.156006,96150.0,96149.0,0.0793]
[1740403766339,0.156006,96150.0,96149.0,0.18194569]
[1740403766541,0.16099101,96150.0,96149.0,0.18194569]
[1740403767796,0.00498501,96150.0,96149.0,0.18194569]
[1740403768026,0.156006,96150.0,96149.0,0.18194569]
[1740403768211,0.00498424,96150.0,96149.0,0.18194569]
[1740403768419,0.0008495,96152.0,96149.0,0.18194569]
[1740403768837,0.156006,96150.0,96149.0,0.18194569]
[1740403769053,0.1609926,96151.0,96149.0,0.18194569]
[1740403769289,0.16099024,96150.0,96149.0,0.18194569]
[1740403772921,0.16099024,96150.0,96149.0,0.0793]
[1740403773410,0.156007,96149.0,96148.0,0.0016986]
[1740403773642,0.156007,96149.0,96148.0,0.10434429]
[1740403774079,0.156007,96149.0,96148.0,0.0016986]
[1740403774080,0.38959113,96149.0,96148.0,0.0016986]
[1740403774288,0.31100576,96149.0,96148.0,0.0016986]
[1740403777840,0.31100576,96149.0,96148.0,0.0792986]
[1740403793013,0.15499876,96149.0,96148.0,0.0792986]
[1740403793215,0.31100576,96149.0,96148.0,0.0792986]
[1740403793675,0.15499876,96149.0,96148.0,0.0792986]
[1740403793894,0.31100576,96149.0,96148.0,0.0792986]
[1740403797100,0.00499876,96149.0,96148.0,0.18194429]
[1740403797622,0.0008495,96152.0,96148.0,0.18194429]
[1740403797848,0.0008495,96152.0,96149.0,0.10264569]
[1740403798050,0.15,96150.0,96149.0,0.10264569]
[1740403798771,0.306006,96150.0,96149.0,0.10264569]
[1740403799053,0.156006,96150.0,96149.0,0.10264569]
[1740403799300,0.156007,96149.0,96148.0,0.0792986]
[1740403799748,0.156007,96149.0,96148.0,0.0016986]
[1740403804406,0.156007,96149.0,96148.0,0.00160633]
[1740403812385,0.0008495,96152.0,96148.0,0.07820633]
[1740403813052,0.0008495,96152.0,96149.0,0.0478]
[1740403813252,0.0008495,96152.0,96150.0,0.0766]
[1740403813433,0.15,96151.0,96150.0,0.0766]
[1740403813632,0.306004,96151.0,96150.0,0.0766]
[1740403813909,0.15,96151.0,96150.0,0.0766]
[1740403814134,0.15,96151.0,96150.0,0.07423213]
[1740403816823,0.0008495,96152.0,96150.0,0.17687782]
[1740403817032,0.0008495,96152.0,96151.0,0.17884569]
[1740403817444,0.16187829,96152.0,96151.0,0.0762]
[1740403817660,0.16187829,96152.0,96148.0,0.00172633]
[1740403817661,0.156007,96149.0,96148.0,0.00172633]
[1740403818072,0.16102567,96149.0,96148.0,0.00172633]
[1740403820257,0.31102567,96149.0,96148.0,0.00172633]
[1740403820443,0.78460467,96149.0,96148.0,0.00172633]
[1740403820724,1.48308067,96149.0,96148.0,0.00172633]
[1740403820945,1.49877393,96149.0,96148.0,0.00172633]
[1740403821167,1.44538493,96149.0,96148.0,0.00172633]
[1740403821408,1.27564562,96149.0,96148.0,0.00172633]
[1740403821851,1.23560545,96149.0,96148.0,0.00172633]
[1740403822054,0.92175601,96149.0,96148.0,0.00172633]
[1740403822901,0.00456256,96149.0,96148.0,0.00172633]
[1740403823111,0.0008495,96152.0,96149.0,0.0789]
[1740403823321,0.306006,96150.0,96149.0,0.0789]
[1740403823946,0.15,96150.0,96149.0,0.0789]
[1740403824167,0.306006,96150.0,96149.0,0.0789]
[1740403824586,0.0008495,96152.0,96149.0,0.0789]
[1740403824797,0.156004,96151.0,96149.0,0.0789]
[1740403825009,0.156006,96150.0,96149.0,0.0789]
[1740403825429,0.15,96151.0,96149.0,0.0789]
[1740403825650,0.156006,96150.0,96149.0,0.0789]
[1740403828102,0.158006,96150.0,96149.0,0.0805996]
[1740403839731,0.002,96150.0,96149.0,0.23184529]
[1740403840150,0.002,96150.0,96149.0,0.38785229]
[1740403841224,0.0008495,96152.0,96151.0,0.156004]
[1740403841438,0.0008495,96152.0,96151.0,0.38434969]
[1740403842584,0.00124979,96163.0,96162.0,0.155986]
[1740403842791,0.00124979,96163.0,96162.0,0.38193169]
[1740403843633,0.00097847,96169.0,96168.0,0.283477]
[1740403843845,0.00097847,96169.0,96168.0,0.38612269]
[1740403846068,0.00097847,96169.0,96168.0,0.39112269]
[1740403846309,0.00097847,96169.0,96168.0,0.39612269]
[1740403860079,0.0008487,96172.0,96168.0,0.39612269]
[1740403860298,0.0008487,96172.0,96171.0,0.46794569]
[1740403860299,0.00127901,96172.0,96171.0,0.46794569]
[1740403862021,0.00085,96186.0,96171.0,0.46794569]
[1740403862022,0.00085,96186.0,96185.0,0.281149]
[1740403862262,0.00091707,96186.0,96185.0,0.38379469]
[1740403863341,0.00091707,96186.0,96185.0,0.38979469]
[1740403863786,0.00091707,96186.0,96185.0,0.38379469]
[1740403864231,0.00091707,96186.0,96185.0,0.39579469]
[1740403864434,0.00091707,96186.0,96185.0,0.38979469]
[1740403864864,0.00091707,96186.0,96185.0,0.39679469]
[1740403865985,0.20589513,96221.0,96205.0,0.238016]
[1740403866205,0.20589513,96221.0,96207.0,0.0494]
[1740403866206,0.00010732,96211.0,96207.0,0.0494]
[1740403866420,0.00010732,96211.0,96208.0,0.10264569]
[1740403866643,0.15601432,96211.0,96208.0,0.10264569]
[1740403866849,0.00010732,96211.0,96208.0,0.10264569]
[1740403867070,0.15591,96209.0,96208.0,0.10264569]
[1740403867293,0.155928,96198.0,96197.0,0.078]
[1740403867514,0.155928,96198.0,96197.0,0.18064569]
[1740403868403,0.00010732,96211.0,96197.0,0.18064569]
[1740403868617,0.00010732,96211.0,96198.0,0.10410086]
[1740403868838,0.00010732,96211.0,96210.0,0.155908]
[1740403869048,0.00010732,96211.0,96210.0,0.18534569]
[1740403869450,0.15601432,96211.0,96210.0,0.18534569]
[1740403869657,0.15601432,96211.0,96210.0,0.10264569]
[1740403870561,0.15601432,96211.0,96210.0,0.10464569]
[1740403871420,0.15601432,96211.0,96210.0,0.10664569]
[1740403871855,0.00010732,96211.0,96210.0,0.10664569]
[1740403873142,0.00010732,96211.0,96210.0,0.26255369]
[1740403874201,0.00010732,96211.0,96210.0,0.39065369]
[1740403875288,0.00010732,96211.0,96210.0,0.38865369]
[1740403875696,0.00010732,96211.0,96210.0,0.39465369]
[1740403876743,0.00010732,96211.0,96210.0,0.39265369]
[1740403877162,0.00010732,96211.0,96210.0,0.39865369]
[1740403877591,0.00095692,96211.0,96210.0,0.54865369]
[1740403877807,0.00011,96222.0,96221.0,0.277891]
[1740403878009,0.00011,96222.0,96221.0,0.22464569]
[1740403878421,0.155999,96222.0,96221.0,0.22464569]
[1740403878632,0.155999,96222.0,96221.0,0.10264569]
[1740403879289,0.155999,96222.0,96210.0,0.006]
[1740403879290,0.00011,96222.0,96210.0,0.006]
[1740403879506,0.155907,96211.0,96210.0,0.013]
[1740403879939,0.155907,96211.0,96210.0,0.007]
[1740403880793,0.155907,96211.0,96210.0,0.011]
[1740403881005,0.155907,96211.0,96210.0,0.004]
[1740403882077,0.155907,96211.0,96210.0,0.008]
[1740403884529,0.03424085,96246.0,96210.0,0.18334569]
[1740403884745,0.03424085,96246.0,96211.0,0.10264569]
[1740403884746,0.00776116,96227.0,96211.0,0.10264569]
[1740403884961,0.00011,96222.0,96221.0,0.155891]
[1740403885174,0.00011,96222.0,96221.0,0.10264569]
[1740403885380,0.00011,96222.0,96221.0,0.25853669]
[1740403885765,0.00111,96222.0,96221.0,0.25853669]
[1740403886891,0.00111,96222.0,96221.0,0.34163669]
[1740403887521,0.00011,96222.0,96221.0,0.34163669]
[1740403887977,0.00011,96222.0,96221.0,0.34463669]
[1740403888193,0.00011,96222.0,96221.0,0.38973669]
[1740403888409,0.00011,96222.0,96221.0,0.40827754]
[1740403888878,0.00011,96222.0,96221.0,0.40073669]
[1740403889094,0.00011,96222.0,96221.0,0.39373669]
[1740403889512,0.00011,96222.0,96221.0,0.40073669]
[1740403889719,0.0009592,96222.0,96221.0,0.40073669]
[1740403890138,0.0009592,96222.0,96221.0,0.39373669]
[1740403890350,0.0009592,96222.0,96221.0,0.40073669]
[1740403890765,0.0009592,96222.0,96221.0,0.38673669]
[1740403890975,0.001039,96233.0,96222.0,0.233189]
[1740403891190,0.001039,96233.0,96222.0,0.41906269]
[1740403892229,0.001039,96233.0,96222.0,0.42606269]
[1740403893427,0.001039,96233.0,96222.0,0.43306269]
[1740403898765,0.001039,96233.0,96222.0,0.34283469]
[1740403898972,0.001039,96233.0,96222.0,0.34983469]
[1740403899573,0.001039,96233.0,96222.0,0.34283469]
[1740403899813,0.001039,96233.0,96222.0,0.34983469]
[1740403900468,0.001039,96233.0,96222.0,0.33583469]
[1740403900676,0.001039,96233.0,96222.0,0.34283469]
[1740403900877,0.001039,96233.0,96222.0,0.34983469]
[1740403901512,0.001039,96233.0,96222.0,0.35153289]
[1740403901718,0.001039,96233.0,96222.0,0.2488872]
[1740403902140,0.001039,96233.0,96222.0,0.35153289]
[1740403902524,0.001039,96233.0,96222.0,0.35028388]
[1740403905215,0.001039,96233.0,96222.0,0.24763819]
[1740403905443,0.001039,96233.0,96222.0,0.35028388]
[1740403909184,5e-07,96233.0,96232.0,0.32041385]
[1740403909414,5e-07,96233.0,96232.0,0.55075954]
[1740403910576,5e-07,96233.0,96232.0,0.55775954]
[1740403910790,5e-07,96233.0,96232.0,0.55075954]
[1740403910997,5e-07,96233.0,96232.0,0.53947079]
[1740403911199,5e-07,96233.0,96232.0,0.54647079]
[1740403911419,5e-07,96233.0,96232.0,0.55347079]
[1740403912391,5e-07,96233.0,96232.0,0.56801164]
[1740403913290,5e-07,96233.0,96232.0,0.55347079]
[1740403913712,0.0008496,96233.0,96232.0,0.55347079]
[1740403915256,0.0008496,96233.0,96232.0,0.56801164]
[1740403915711,0.0008496,96233.0,96232.0,0.57321507]
[1740403916048,0.0008496,96233.0,96232.0,0.55867422]
[1740403916453,0.0008496,96233.0,96232.0,0.59739792]
[1740403918046,0.0008496,96233.0,96232.0,1.46479792]
[1740403920378,0.0008496,96233.0,96232.0,1.45959449]
[1740403920840,0.0008496,96233.0,96232.0,1.27087079]
[1740403921029,0.0008496,96233.0,96232.0,1.22137079]
[1740403921235,0.0008496,96233.0,96232.0,0.44129779]
[1740403921742,0.0008496,96233.0,96232.0,0.59717079]
[1740403922262,0.0008496,96233.0,96232.0,0.68681164]
[1740403922467,0.0008496,96233.0,96232.0,1.28001164]
[1740403922878,0.0008496,96233.0,96232.0,1.43001164]
[1740403925688,0.0008496,96233.0,96232.0,1.43170984]
[1740403926109,0.0008496,96233.0,96232.0,1.26716899]
[1740403928637,0.0008496,96233.0,96232.0,0.72116899]
[1740403929799,0.0008496,96233.0,96232.0,0.71791689]
[1740403934038,0.1567206,96233.0,96232.0,0.43974389]
[1740403934287,0.0008496,96233.0,96232.0,0.43974389]
[1740403934736,0.1567206,96233.0,96232.0,0.43974389]
[1740403934946,0.0008496,96233.0,96232.0,0.43974389]
[1740403935090,0.0008496,96233.0,96232.0,0.43274389]
[1740403935461,0.0008496,96233.0,96232.0,0.42574389]
[1740403935669,0.0008496,96233.0,96232.0,0.43274389]
[1740403935905,0.1567206,96233.0,96232.0,0.11134389]
[1740403936323,0.17367875,96233.0,96232.0,0.11834389]
[1740403936744,0.17367875,96233.0,96232.0,0.11134389]
[1740403936979,0.17367875,96233.0,96232.0,0.10434389]
[1740403937228,0.00783904,96233.0,96232.0,0.11134389]
[1740403937474,0.177771,96233.0,96232.0,0.0086982]
[1740403938138,0.1786201,96233.0,96232.0,0.0086982]
[1740403938347,0.1786201,96233.0,96232.0,0.0156982]
[1740403940034,0.19438131,96233.0,96232.0,0.0156982]
[1740403940241,0.155871,96233.0,96232.0,0.0156982]
[1740403940795,0.155871,96233.0,96232.0,0.0086982]
[1740403941238,0.155871,96233.0,96232.0,0.004]
[1740403941239,0.41973755,96233.0,96232.0,0.004]
[1740403941407,0.155907,96211.0,96210.0,0.0016984]
[1740403941823,0.3057498,96211.0,96210.0,0.0016984]
[1740403942471,0.3057498,96211.0,96172.0,0.0016992]
[1740403942472,0.155939,96191.0,96172.0,0.0016992]
[1740403942684,0.305939,96191.0,96190.0,1.00010732]
[1740403942902,0.37186545,96191.0,96190.0,1.00010732]
[1740403943108,0.37186545,96191.0,96190.0,0.9923037]
[1740403943307,1.32444345,96191.0,96190.0,0.9923037]
[1740403943729,1.33222145,96191.0,96190.0,0.9923037]
[1740403944204,1.34850915,96191.0,96190.0,0.9923037]
[1740403944411,0.98855215,96191.0,96190.0,0.9923037]
[1740403947281,1.04904764,96191.0,96190.0,0.96106017]
[1740403947498,1.04904764,96191.0,96190.0,0.89950674]
[1740403947707,1.04904764,96191.0,96190.0,0.87385477]
[1740403947913,0.99266204,96191.0,96190.0,0.87385477]
[1740403948125,0.42356304,96191.0,96190.0,0.87385477]
[1740403948329,1.91197404,96191.0,96190.0,0.87385477]
[1740403948532,1.88258104,96191.0,96190.0,0.87385477]
[1740403948754,1.88658104,96191.0,96190.0,0.87385477]
[1740403948955,1.98922673,96191.0,96190.0,0.87385477]
[1740403949509,1.97293903,96191.0,96190.0,0.87385477]
[1740403949722,1.27960534,96191.0,96190.0,0.87555437]
[1740403949955,1.08918634,96191.0,96190.0,0.87555437]
[1740403951281,0.99519234,96191.0,96190.0,0.87555437]
[1740403951503,0.82439034,96191.0,96190.0,0.87555437]
[1740403952871,0.83423034,96191.0,96190.0,0.87555437]
[1740403953083,0.85811484,96191.0,96190.0,0.87555437]
[1740403953522,0.85795484,96191.0,96190.0,0.87555437]
[1740403954013,0.85035965,96191.0,96190.0,0.87555437]
[1740403954450,0.78564665,96191.0,96190.0,0.87555437]
[1740403955087,0.78560665,96191.0,96190.0,0.87555437]
[1740403955510,0.65824865,96191.0,96190.0,0.87555437]
[1740403955761,0.64844865,96191.0,96190.0,0.87555437]
[1740403955964,0.65824865,96191.0,96190.0,0.87555437]
[1740403956169,0.59775316,96191.0,96190.0,0.87555437]
[1740403957223,0.59775316,96191.0,96172.0,0.0016992]
[1740403957224,0.01454085,96189.0,96172.0,0.0016992]
[1740403957434,0.155983,96164.0,96163.0,0.0016994]
[1740403957660,0.305983,96164.0,96163.0,0.00176647]
[1740403957862,0.378176,96164.0,96163.0,0.00176647]
[1740403958307,0.39446814,96164.0,96163.0,0.00176647]
[1740403958747,0.39446814,96164.0,96163.0,0.00276647]
[1740403959202,0.40989868,96164.0,96163.0,0.00176647]
[1740403959439,0.39360654,96164.0,96163.0,0.00276647]
[1740403959688,0.1329004,96173.0,96163.0,0.00276647]
[1740403959909,0.01570734,96174.0,96165.0,0.207975]
[1740403960133,0.01570734,96174.0,96164.0,0.18454569]
[1740403960134,0.1329004,96190.0,96166.0,0.1041014]
[1740403960867,0.0152822,96190.0,96174.0,0.18587369]
[1740403961114,0.0152822,96190.0,96175.0,0.13055545]
[1740403961362,0.1329004,96190.0,96176.0,0.10264569]
[1740403961623,0.1339004,96190.0,96182.0,0.155952]
[1740403961871,0.21509795,96200.0,96183.0,0.10264569]
[1740403962102,0.002,96190.0,96183.0,0.10264569]
[1740403962313,0.002,96190.0,96183.0,0.25859769]
[1740403962485,0.001,96190.0,96184.0,0.15595]
[1740403962696,0.001,96190.0,96185.0,0.10264569]
[1740403962909,0.001,96190.0,96186.0,0.155947]
[1740403963104,0.001,96190.0,96187.0,0.10264569]
[1740403963348,0.0008502,96191.0,96187.0,0.10264569]
[1740403963552,0.0008502,96191.0,96189.0,0.155942]
[1740403963692,0.001,96190.0,96189.0,0.155942]
[1740403963893,0.001,96190.0,96189.0,0.25858769]
[1740403964097,0.0008502,96191.0,96189.0,0.25858769]
[1740403964293,0.0008502,96191.0,96190.0,0.10264569]
[1740403964508,0.0018502,96191.0,96190.0,0.10264569]
[1740403964918,0.0008502,96191.0,96190.0,0.10264569]
[1740403965399,0.0008502,96191.0,96182.0,0.0017004]
[1740403965400,0.155952,96183.0,96182.0,0.0017004]
[1740403965616,0.01752822,96191.0,96190.0,0.004]
[1740403965617,0.0018502,96191.0,96190.0,0.004]
[1740403965873,0.1577892,96191.0,96190.0,0.004]
[1740403966573,0.1567892,96191.0,96190.0,0.004]
[1740403966976,0.15595,96185.0,96182.0,0.0017004]
[1740403967161,0.155951,96184.0,96182.0,0.0017004]
[1740403967727,0.0008502,96191.0,96182.0,0.0017004]
[1740403967924,0.155952,96183.0,96182.0,0.0017004]
[1740403968327,0.155952,96183.0,96182.0,0.0067004]
[1740403969926,0.155952,96183.0,96182.0,0.0017004]
[1740403970128,0.155952,96183.0,96182.0,0.0077004]
[1740403970129,0.156952,96183.0,96182.0,0.0077004]
[1740403970580,0.157952,96183.0,96182.0,0.0077004]
[1740403973652,0.002,96183.0,96182.0,0.11034609]
[1740403974511,0.157952,96183.0,96182.0,0.11034609]
[1740403974871,0.2153329,96183.0,96182.0,0.0077004]
[1740403975074,0.3653329,96183.0,96182.0,0.0077004]
[1740403975322,0.9658867,96183.0,96182.0,0.0077004]
[1740403975553,0.7060327,96183.0,96182.0,0.0077004]
[1740403975970,0.6888327,96183.0,96182.0,0.0077004]
[1740403976389,0.6878327,96183.0,96182.0,0.0017004]
[1740403976620,0.70137355,96183.0,96182.0,0.0017004]
[1740403976869,0.70437355,96183.0,96182.0,0.0017004]
[1740403977075,0.71207958,96183.0,96182.0,0.0017004]
[1740403979395,0.38857978,96183.0,96182.0,0.0017004]
[1740403979608,0.31665803,96183.0,96182.0,0.0017004]
[1740403980026,0.308952,96183.0,96182.0,0.0017004]
[1740403981103,0.32349285,96183.0,96182.0,0.0017004]
[1740403982580,0.308952,96183.0,96182.0,0.0017004]
[1740403982825,0.153,96183.0,96182.0,0.0017004]
[1740403983036,0.158952,96183.0,96182.0,0.0017004]
[1740403983469,0.158952,96183.0,96182.0,0.0782004]
[1740403986971,0.1598023,96183.0,96182.0,0.0782004]
[1740403987167,0.0038503,96183.0,96182.0,0.0782004]
[1740403987336,0.1598023,96183.0,96182.0,0.0782004]
[1740403987538,0.0038503,96183.0,96182.0,0.33680009]
[1740403987749,0.0038503,96183.0,96182.0,0.18084609]
[1740403989846,0.0028503,96183.0,96182.0,0.18084609]
[1740403990061,0.0008503,96183.0,96182.0,0.18084609]
[1740403990295,0.0008503,96183.0,96182.0,0.18184609]
[1740403990883,0.0008503,96183.0,96182.0,0.33780009]
[1740403991636,0.0008503,96183.0,96182.0,0.38280009]
[1740403992282,0.0008503,96183.0,96182.0,0.70420009]
[1740403992901,0.0008502,96191.0,96190.0,0.155941]
[1740403993107,0.0008502,96191.0,96190.0,0.3856418]
[1740403993307,0.0008502,96191.0,96190.0,0.38318669]
[1740403994093,0.0008502,96191.0,96190.0,0.38218669]
[1740403994271,0.0008502,96191.0,96190.0,0.70258669]
[1740403994682,0.0018502,96191.0,96190.0,0.70858669]
[1740403995702,0.0018502,96191.0,96190.0,0.55564569]
[1740403996067,0.0028502,96191.0,96190.0,0.71358669]
[1740403999018,0.0028502,96191.0,96190.0,0.55764569]
[1740403999780,0.0028502,96191.0,96190.0,0.55934609]
[1740404000237,0.1587892,96191.0,96190.0,0.55934609]
[1740404000463,0.0028502,96191.0,96190.0,0.55934609]
[1740404002055,0.1587892,96191.0,96190.0,0.51414609]
[1740404002456,0.1587892,96191.0,96190.0,0.0901004]
[1740404003112,0.0028502,96191.0,96190.0,0.19274609]
[1740404004210,0.1587892,96191.0,96190.0,0.19274609]
[1740404004418,0.1587892,96191.0,96190.0,0.0097004]
[1740404005397,0.1577892,96191.0,96190.0,0.0077004]
[1740404005806,0.1577892,96191.0,96190.0,0.0097004]
[1740404006280,0.1567892,96191.0,96190.0,0.0017004]
[1740404006660,0.1567892,96191.0,96190.0,0.0047004]
[1740404006876,0.1567892,96191.0,96190.0,0.0027004]
[1740404007315,0.1567892,96191.0,96190.0,0.0037004]
[1740404010232,0.15541171,96191.0,96190.0,0.0037004]
[1740404010434,0.18545526,96191.0,96190.0,0.0037004]
[1740404010638,0.34509526,96191.0,96190.0,0.0037004]
[1740404011093,1.97597126,96191.0,96190.0,0.0037004]
[1740404011288,1.99051211,96191.0,96190.0,0.0037004]
[1740404011897,1.99136231,96191.0,96190.0,0.0037004]
[1740404012102,1.41751631,96191.0,96190.0,0.0037004]
[1740404012329,0.92662331,96191.0,96190.0,0.0037004]
[1740404012534,0.85844631,96191.0,96190.0,0.0037004]
[1740404013639,0.85924631,96191.0,96190.0,0.0037004]
[1740404014287,0.305952,96183.0,96182.0,0.0017004]
[1740404015206,0.32224085,96183.0,96182.0,0.0017004]
[1740404015625,0.32224085,96183.0,96182.0,0.0037004]
[1740404015833,0.32224085,96183.0,96182.0,0.0067004]
[1740404026860,0.305952,96183.0,96182.0,0.0067004]
[1740404027069,0.3998821,96183.0,96182.0,0.0067004]
[1740404028629,0.0939301,96183.0,96182.0,0.0067004]
[1740404029056,0.09367072,96183.0,96182.0,0.0067004]
[1740404029266,0.24962272,96183.0,96182.0,0.0067004]
[1740404030041,0.26591103,96183.0,96182.0,0.0067004]
[1740404030828,0.17224031,96183.0,96182.0,0.0067004]
[1740404033101,0.15,96180.0,96151.0,0.0751]
[1740404033318,0.156002,96152.0,96151.0,0.0751]
[1740404033570,0.156002,96152.0,96151.0,0.07553031]
[1740404033834,0.156002,96152.0,96151.0,0.00043031]
[1740404034310,0.17506604,96152.0,96151.0,0.00043031]
[1740404034563,0.156012,96146.0,96145.0,0.07088427]
[1740404034769,0.156012,96146.0,96145.0,0.07101344]
[1740404035197,0.156012,96146.0,96145.0,0.00012917]
[1740404035477,0.25611855,96152.0,96126.0,0.3214]
[1740404035727,0.04824245,96152.0,96127.0,0.10264569]
[1740404035990,0.156017,96143.0,96132.0,0.156033]
[1740404036231,0.15602,96142.0,96133.0,0.10264569]
[1740404036403,0.01295189,96146.0,96133.0,0.07007981]
[1740404036652,0.208019,96145.0,96133.0,0.07007981]
[1740404036859,0.156021,96141.0,96133.0,0.07007981]
[1740404037062,0.156021,96141.0,96135.0,0.156029]
[1740404037264,0.0067019,96140.0,96136.0,0.10264569]
[1740404037466,0.0067019,96140.0,96137.0,0.0455]
[1740404037678,0.0067019,96140.0,96138.0,0.18464569]
[1740404038501,0.0067019,96140.0,96138.0,0.34067069]
[1740404038704,0.0067019,96140.0,96138.0,0.18464569]
[1740404039293,0.156019,96143.0,96138.0,0.18464569]
[1740404039725,0.156019,96142.0,96138.0,0.18464569]
[1740404039929,0.156024,96139.0,96138.0,0.18464569]
[1740404040147,0.208006,96151.0,96138.0,0.18464569]
[1740404040323,0.15602,96142.0,96138.0,0.18464569]
[1740404040727,0.208022,96144.0,96138.0,0.18464569]
[1740404040934,0.15602,96142.0,96138.0,0.18464569]
[1740404041231,0.156021,96141.0,96138.0,0.18464569]
[1740404041439,0.156018,96143.0,96138.0,0.18464569]
[1740404041616,0.156019,96142.0,96138.0,0.18464569]
[1740404042041,0.208024,96143.0,96138.0,0.18464569]
[1740404042206,0.156019,96142.0,96138.0,0.18464569]
[1740404042626,0.156017,96143.0,96138.0,0.34066969]
[1740404042792,0.156019,96142.0,96138.0,0.18464569]
[1740404043565,0.156017,96143.0,96138.0,0.18464569]
[1740404043767,0.156019,96142.0,96138.0,0.18464569]
[1740404043974,0.208013,96148.0,96138.0,0.18464569]
[1740404044198,0.208026,96142.0,96138.0,0.18464569]
[1740404044398,0.156021,96141.0,96138.0,0.18464569]
[1740404044606,0.15,96162.0,96138.0,0.18464569]
[1740404044809,0.15602,96141.0,96138.0,0.18464569]
[1740404045184,0.156023,96140.0,96138.0,0.18464569]
[1740404045386,0.208006,96151.0,96138.0,0.18464569]
[1740404045587,0.156024,96139.0,96138.0,0.18464569]
[1740404045785,0.208021,96145.0,96138.0,0.18464569]
[1740404045987,0.208008,96150.0,96138.0,0.18464569]
[1740404046203,0.156018,96143.0,96138.0,0.18464569]
[1740404046746,0.208006,96151.0,96138.0,0.18464569]
[1740404047070,0.15602,96142.0,96138.0,0.18464569]
[1740404047604,0.208015,96147.0,96138.0,0.18464569]
[1740404047845,0.156019,96142.0,96138.0,0.18464569]
[1740404048061,0.208008,96150.0,96138.0,0.18464569]
[1740404048235,0.208021,96145.0,96138.0,0.18464569]
[1740404048438,0.15602,96142.0,96138.0,0.18464569]
[1740404048841,0.156023,96140.0,96138.0,0.18464569]
[1740404049384,0.156024,96139.0,96138.0,0.18464569]
[1740404049611,0.156022,96140.0,96138.0,0.18464569]
[1740404049815,0.208008,96150.0,96138.0,0.18464569]
[1740404050047,0.208023,96144.0,96138.0,0.18464569]
[1740404050253,0.208008,96150.0,96138.0,0.18464569]
[1740404050670,0.156022,96141.0,96138.0,0.18464569]
[1740404051588,0.156017,96143.0,96138.0,0.18464569]
[1740404051822,0.0008507,96151.0,96138.0,0.18464569]
[1740404052002,0.156023,96140.0,96138.0,0.18464569]
[1740404052445,0.156024,96139.0,96138.0,0.18464569]
[1740404052883,0.208029,96141.0,96138.0,0.18464569]
[1740404053100,0.156024,96139.0,96138.0,0.18464569]
[1740404054142,0.156024,96139.0,96138.0,0.082]
[1740404055427,0.0780102,96139.0,96133.0,0.0017014]
[1740404055597,0.156032,96134.0,96133.0,0.0017014]
[1740404059068,0.1568827,96134.0,96133.0,0.0017014]
[1740404060384,0.17142355,96134.0,96133.0,0.0017014]
[1740404061239,0.18086355,96134.0,96133.0,0.0017014]
[1740404061445,0.26136071,96134.0,96133.0,0.0017014]
[1740404061670,0.26336071,96134.0,96133.0,0.0017014]
[1740404062455,0.28165714,96134.0,96133.0,0.0017014]
[1740404063137,0.02114713,96134.0,96133.0,0.0017014]
[1740404063406,0.17717913,96134.0,96133.0,0.0017014]
[1740404067718,1.02384698,96134.0,96133.0,0.0017014]
[1740404067927,2.04975198,96134.0,96133.0,0.0017014]
[1740404068127,1.97027198,96134.0,96133.0,0.0017014]
[1740404068338,1.71640767,96134.0,96133.0,0.0017014]
[1740404068774,1.68084767,96134.0,96133.0,0.0017014]
[1740404068979,1.14373067,96134.0,96133.0,0.0017014]
[1740404069163,1.14173067,96134.0,96133.0,0.0017014]
[1740404069356,1.14573067,96134.0,96133.0,0.0017014]
[1740404069556,1.12943424,96134.0,96133.0,0.0017014]
[1740404070350,0.0098507,96134.0,96133.0,0.0780014]
[1740404070541,0.0098507,96134.0,96133.0,0.33668009]
[1740404071121,0.0048507,96134.0,96133.0,0.33668009]
[1740404071324,0.0098507,96134.0,96133.0,0.33668009]
[1740404071974,0.0048507,96134.0,96133.0,0.33668009]
[1740404072205,0.0008507,96134.0,96133.0,0.33668009]
[1740404072537,0.0048507,96134.0,96133.0,0.33668009]
[1740404072739,0.0008507,96134.0,96133.0,0.38258009]
[1740404072953,0.09380627,96151.0,96150.0,0.233806]
[1740404073176,0.09380627,96151.0,96150.0,0.33645169]
[1740404073678,0.09380627,96151.0,96150.0,0.33545169]
[1740404073817,0.09380627,96151.0,96150.0,0.33445169]
[1740404074425,0.0008507,96151.0,96150.0,0.33445169]
[1740404074636,0.0008507,96151.0,96150.0,0.33545169]
[1740404076547,0.0008507,96151.0,96150.0,0.33531027]
[1740404078045,0.0008507,96151.0,96150.0,0.18144569]
[1740404078261,0.1568547,96151.0,96150.0,0.0788]
[1740404078715,0.1568547,96151.0,96150.0,0.001]